[Event "RUS-ch Rapid 2021"]
[Site "Sochi"]
[Date "2021.10.13"]
[Round "10.23"]
[White "Khegay, Dmitriy"]
[Black "Nazaretyan, Tigran"]
[Result "1-0"]
[ECO "A45"]
[WhiteElo "2521"]
[BlackElo "2316"]
[Annotator "ChessBase"]
[PlyCount "107"]
[EventDate "2021.10.12"]
[EventType "swiss"]
[EventCountry "RUS"]
[SourceTitle "playchess.com"]
[Source "ChessBase"]
[SourceQuality "1"]
[TimeControl "900+10"]

1. d4 {[%emt 0:00:00]} Nf6 {[%emt 0:00:12]} 2. Bf4 {[%emt 0:00:01]} d6 {
[%emt 0:00:08]} 3. e3 {[%emt 0:00:05]} Nbd7 {[%emt 0:00:08]} 4. h3 {[%emt 0:00:
10]} e5 {[%emt 0:00:08]} 5. Bh2 {[%emt 0:00:00]} Qe7 {[%emt 0:00:34]} 6. Nf3 {
[%emt 0:00:00]} exd4 {[%emt 0:00:07]} 7. Nxd4 {[%emt 0:00:06]} g6 {[%emt 0:00:
08]} 8. Be2 {[%emt 0:00:00]} Bg7 {[%emt 0:00:03]} 9. O-O {[%emt 0:00:09]} O-O {
[%emt 0:00:02]} 10. c4 {[%emt 0:00:00]} Ne4 {[%emt 0:00:08]} 11. Nd2 {[%emt 0:
00:06]} Ndc5 {[%emt 0:00:22]} 12. Nxe4 {[%emt 0:00:18]} Nxe4 {[%emt 0:00:00]}
13. Qc2 {[%emt 0:00:04]} a5 {[%emt 0:00:59]} 14. Rfd1 {[%emt 0:00:53]} Bd7 {
[%emt 0:00:14]} 15. Bf3 {[%emt 0:00:12]} Rae8 {[%emt 0:00:25]} 16. Rac1 {
[%emt 0:00:10]} b6 {[%emt 0:00:12]} 17. Nb5 {[%emt 0:00:32]} Bf5 {[%emt 0:00:
17]} 18. Qe2 {[%emt 0:00:16]} h5 {[%emt 0:00:17]} 19. b3 {[%emt 0:02:24]} Qd8 {
[%emt 0:01:57]} 20. Nd4 {[%emt 0:01:06]} Bd7 {[%emt 0:00:13]} 21. Qc2 {[%emt 0:
00:00]} f5 {[%emt 0:00:30]} 22. a3 {[%emt 0:00:19]} Bh6 {[%emt 0:00:38]} 23.
Re1 {[%emt 0:00:31]} Re7 {[%emt 0:00:05]} 24. b4 {[%emt 0:00:08]} axb4 {
[%emt 0:00:09]} 25. axb4 {[%emt 0:00:00]} Qe8 {[%emt 0:00:00]} 26. Bxe4 {
[%emt 0:00:25]} Rxe4 {[%emt 0:00:06]} 27. Nf3 {[%emt 0:00:42]} Rf6 {[%emt 0:02:
28]} 28. c5 {[%emt 0:00:09]} dxc5 {[%emt 0:00:36]} 29. bxc5 {[%emt 0:00:02]}
Rc6 {[%emt 0:00:04]} 30. Qb3+ {[%emt 0:01:08]} Be6 {[%emt 0:01:51]} 31. Qb5 {
[%emt 0:00:00]} Bd7 {[%emt 0:00:00]} 32. Rcd1 {[%emt 0:00:49]} bxc5 {[%emt 0:
00:45]} 33. Ne5 {[%emt 0:00:23]} Rb4 {[%emt 0:00:40]} 34. Qa5 {[%emt 0:01:32]}
Rd6 {[%emt 0:00:44]} 35. Qxc5 {[%emt 0:00:14]} Rb7 {[%emt 0:02:18]} 36. Nxd7 {
[%emt 0:00:17]} Rxd1 {[%emt 0:01:00]} 37. Qc4+ {[%emt 0:00:50]} Qf7 {[%emt 0:
01:13]} 38. Qxf7+ {[%emt 0:00:05]} Kxf7 {[%emt 0:00:00]} 39. Rxd1 {[%emt 0:00:
00]} Bg7 {[%emt 0:00:10]} 40. Ne5+ {[%emt 0:00:15]} Kf6 {[%emt 0:00:14]} 41. h4
{[%emt 0:00:03]} Rb5 {[%emt 0:00:45]} 42. Nf3 {[%emt 0:00:00]} c5 {[%emt 0:00:
03]} 43. Be5+ {[%emt 0:00:04]} Kf7 {[%emt 0:00:17]} 44. Rd7+ {[%emt 0:00:04]}
Ke6 {[%emt 0:00:02]} 45. Rxg7 {[%emt 0:00:05]} c4 {[%emt 0:00:00]} 46. Rxg6+ {
[%emt 0:00:04]} Kd5 {[%emt 0:00:10]} 47. Rd6+ {[%emt 0:00:10]} Kc5 {[%emt 0:00:
01]} 48. Rf6 {[%emt 0:00:04]} Kd5 {[%emt 0:00:08]} 49. Rxf5 {[%emt 0:00:02]}
Ke4 {[%emt 0:00:00]} 50. Rf4+ {[%emt 0:00:00]} Kd3 {[%emt 0:00:04]} 51. Rd4+ {
[%emt 0:00:10]} Kc2 {[%emt 0:00:03]} 52. Rxc4+ {[%emt 0:00:00]} Kd3 {[%emt 0:
00:00]} 53. Rd4+ {[%emt 0:00:00]} Kc2 {[%emt 0:00:07]} 54. Kh2 {[%emt 0:00:00]}
1-0

[Event "RUS-ch Rapid 2021"]
[Site "Sochi"]
[Date "2021.10.13"]
[Round "10.24"]
[White "Potapov, Pavel"]
[Black "Yatzenko, Anton"]
[Result "1/2-1/2"]
[ECO "C85"]
[WhiteElo "2481"]
[BlackElo "2370"]
[Annotator "ChessBase"]
[PlyCount "55"]
[EventDate "2021.10.12"]
[EventType "swiss"]
[EventCountry "RUS"]
[SourceTitle "playchess.com"]
[Source "ChessBase"]
[SourceQuality "1"]
[TimeControl "900+10"]

1. e4 {[%emt 0:00:00]} e5 {[%emt 0:00:00]} 2. Nf3 {[%emt 0:00:05]} Nc6 {
[%emt 0:00:01]} 3. Bb5 {[%emt 0:00:05]} a6 {[%emt 0:00:01]} 4. Ba4 {[%emt 0:00:
00]} Nf6 {[%emt 0:00:05]} 5. Bxc6 {[%emt 0:00:05]} dxc6 {[%emt 0:00:00]} 6. d3
{[%emt 0:00:00]} Nd7 {[%emt 0:00:30]} 7. b3 {[%emt 0:00:16]} Bd6 {[%emt 0:00:
03]} 8. Bb2 {[%emt 0:00:00]} O-O {[%emt 0:00:02]} 9. Nbd2 {[%emt 0:00:02]} Re8
{[%emt 0:00:04]} 10. O-O {[%emt 0:00:49]} Bf8 {[%emt 0:00:03]} 11. Nc4 {
[%emt 0:00:24]} f6 {[%emt 0:00:00]} 12. a4 {[%emt 0:00:11]} a5 {[%emt 0:00:31]}
13. h3 {[%emt 0:00:22]} Nc5 {[%emt 0:00:07]} 14. Ne3 {[%emt 0:01:50]} Be6 {
[%emt 0:01:13]} 15. Kh2 {[%emt 0:03:29]} Qd7 {[%emt 0:00:25]} 16. Qe2 {[%emt 0:
00:14]} Rad8 {[%emt 0:00:18]} 17. Rfd1 {[%emt 0:00:11]} Bf7 {[%emt 0:01:03]}
18. Nf5 {[%emt 0:00:59]} Ne6 {[%emt 0:00:32]} 19. g3 {[%emt 0:00:42]} g6 {
[%emt 0:01:29]} 20. Ne3 {[%emt 0:00:07]} Nd4 {[%emt 0:00:12]} 21. Nxd4 {
[%emt 0:01:30]} exd4 {[%emt 0:00:04]} 22. Nc4 {[%emt 0:00:10]} b6 {[%emt 0:00:
15]} 23. f4 {[%emt 0:00:21]} Bg7 {[%emt 0:00:33]} 24. Nd2 {[%emt 0:00:34]} Be6
{[%emt 0:00:57]} 25. Qg2 {[%emt 0:00:19]} c5 {[%emt 0:00:00]} 26. Nf3 {[%emt 0:
00:54]} f5 {[%emt 0:00:37]} 27. e5 {[%emt 0:01:06]} Bd5 {[%emt 0:00:00]} 28.
Bc1 {[%emt 0:00:10]} 1/2-1/2

[Event "RUS-ch Rapid 2021"]
[Site "Sochi"]
[Date "2021.10.13"]
[Round "11.1"]
[White "Bocharov, Dmitry"]
[Black "Tsydypov, Zhamsaran"]
[Result "1/2-1/2"]
[ECO "D78"]
[WhiteElo "2517"]
[BlackElo "2526"]
[Annotator "ChessBase"]
[PlyCount "33"]
[EventDate "2021.10.12"]
[EventType "swiss"]
[EventCountry "RUS"]
[SourceTitle "playchess.com"]
[Source "ChessBase"]
[SourceQuality "1"]
[TimeControl "900+10"]

1. d4 {[%emt 0:00:29]} Nf6 {[%emt 0:00:06]} 2. c4 {[%emt 0:00:04]} g6 {[%emt 0:
00:19]} 3. Nf3 {[%emt 0:00:05]} Bg7 {[%emt 0:00:01]} 4. g3 {[%emt 0:00:00]} c6
{[%emt 0:00:24]} 5. Bg2 {[%emt 0:00:20]} d5 {[%emt 0:00:00]} 6. Qb3 {[%emt 0:
00:29]} O-O {[%emt 0:00:16]} 7. O-O {[%emt 0:00:05]} dxc4 {[%emt 0:00:19]} 8.
Qxc4 {[%emt 0:00:08]} Be6 {[%emt 0:00:07]} 9. Qa4 {[%emt 0:00:10]} Nbd7 {
[%emt 0:00:07]} 10. Nc3 {[%emt 0:00:35]} Bf5 {[%emt 0:01:50]} 11. Rd1 {[%emt 0:
04:45]} a5 {[%emt 0:00:57]} 12. Qb3 {[%emt 0:00:27]} Qc8 {[%emt 0:01:37]} 13.
Bf4 {[%emt 0:00:33]} Ne4 {[%emt 0:00:14]} 14. Rac1 {[%emt 0:01:33]} Nxc3 {
[%emt 0:00:06]} 15. bxc3 {[%emt 0:00:23]} a4 {[%emt 0:02:25]} 16. Qb4 {[%emt 0:
01:02]} Re8 {[%emt 0:00:06]} 17. c4 {[%emt 0:03:22]} 1/2-1/2

[Event "RUS-ch Rapid 2021"]
[Site "Sochi"]
[Date "2021.10.13"]
[Round "11.2"]
[White "Alekseev, Evgeny"]
[Black "Rozum, Ivan"]
[Result "1/2-1/2"]
[ECO "B13"]
[WhiteElo "2602"]
[BlackElo "2529"]
[Annotator "RC"]
[PlyCount "62"]
[EventDate "2021.10.12"]
[EventType "swiss"]
[EventCountry "RUS"]
[SourceTitle "playchess.com"]
[Source "ChessBase"]
[SourceQuality "1"]
[TimeControl "900+10"]

1. e4 {[%emt 0:00:00]} c6 {[%emt 0:00:04]} 2. d4 {[%emt 0:00:08]} d5 {[%emt 0:
00:00]} 3. exd5 {[%emt 0:00:03]} cxd5 {[%emt 0:00:01]} 4. Bd3 {[%emt 0:00:02]}
Nc6 {[%emt 0:00:08]} 5. c3 {[%emt 0:00:00]} Nf6 {[%emt 0:00:02]} 6. Bf4 {
[%emt 0:00:47]} Bg4 {[%emt 0:00:19]} 7. Qb3 {[%emt 0:00:01]} Qd7 {[%emt 0:00:
00]} 8. Nd2 {[%emt 0:00:05]} e6 {[%emt 0:00:00]} 9. Ngf3 {[%emt 0:00:04]} Bd6 {
[%emt 0:00:00]} 10. Ne5 {[%emt 0:00:00]} Qc7 {[%emt 0:00:28]} 11. O-O {[%emt 0:
01:19]} Nxe5 {[%emt 0:04:00]} 12. dxe5 {[%emt 0:00:12]} Bxe5 {[%emt 0:00:00]}
13. Bxe5 {[%emt 0:00:36]} Qxe5 {[%emt 0:00:00]} 14. Qb5+ {[%emt 0:00:04]} Nd7 {
[%emt 0:03:14]} 15. Qxb7 {[%emt 0:00:05]} Qb8 {[%emt 0:00:40]} 16. Qb4 {
[%emt 0:05:48]} Qxb4 {[%emt 0:01:20]} 17. cxb4 {[%emt 0:00:00]} Ke7 {[%emt 0:
00:04]} 18. Rfc1 {[%emt 0:00:28]} Rhb8 {[%emt 0:00:34]} 19. a3 {[%emt 0:00:12]}
a5 {[%emt 0:00:43]} 20. b5 {[%emt 0:00:02]} a4 {[%emt 0:00:00]} 21. f3 {
[%emt 0:03:58]} Bf5 {[%emt 0:00:52]} 22. Bxf5 {[%emt 0:00:22]} exf5 {[%emt 0:
00:01]} 23. b4 {[%emt 0:00:05]} axb3 {[%emt 0:01:09]} 24. Nxb3 {[%emt 0:00:06]}
Rxb5 {[%emt 0:00:57]} 25. Nd4 {[%emt 0:00:04]} Rc5 {[%emt 0:00:45]} 26. Nxf5+ {
[%emt 0:00:23]} Kf6 {[%emt 0:01:26]} 27. Ne3 {[%emt 0:02:12]} Rxc1+ {[%emt 0:
00:26]} 28. Rxc1 {[%emt 0:00:03]} d4 {[%emt 0:00:18]} 29. Rc6+ {[%emt 0:01:34]}
Ke5 {[%emt 0:00:30]} 30. Nc4+ {[%emt 0:00:00]} Kd5 {[%emt 0:00:05]} 31. Rc7 {
[%emt 0:00:04]} Ra6 {[%emt 0:01:01]} 1/2-1/2

[Event "RUS-ch Rapid 2021"]
[Site "Sochi"]
[Date "2021.10.13"]
[Round "11.3"]
[White "Murzin, Volodar"]
[Black "Sjugirov, Sanan"]
[Result "0-1"]
[ECO "B30"]
[WhiteElo "2513"]
[BlackElo "2663"]
[Annotator "RC"]
[PlyCount "122"]
[EventDate "2021.10.12"]
[EventType "swiss"]
[EventCountry "RUS"]
[SourceTitle "playchess.com"]
[Source "ChessBase"]
[SourceQuality "1"]
[TimeControl "900+10"]

1. e4 {[%emt 0:00:04]} c5 {[%emt 0:00:00]} 2. Nf3 {[%emt 0:00:02]} Nc6 {
[%emt 0:00:02]} 3. Bb5 {[%emt 0:00:02]} e6 {[%emt 0:00:03]} 4. O-O {[%emt 0:00:
01]} Nge7 {[%emt 0:00:09]} 5. d4 {[%emt 0:00:00]} cxd4 {[%emt 0:00:08]} 6. Nxd4
{[%emt 0:00:04]} Ng6 {[%emt 0:00:10]} 7. Be3 {[%emt 0:01:04]} Be7 {[%emt 0:00:
26]} 8. Re1 {[%emt 0:01:31]} O-O {[%emt 0:00:00]} 9. Nd2 {[%emt 0:00:11]} Nxd4
{[%emt 0:01:05]} 10. Bxd4 {[%emt 0:00:03]} b6 {[%emt 0:00:14]} 11. c3 {[%emt 0:
03:31]} Bb7 {[%emt 0:00:17]} 12. Bf1 {[%emt 0:00:47]} Qc7 {[%emt 0:00:36]} 13.
a4 {[%emt 0:00:43]} f5 {[%emt 0:00:19]} 14. e5 {[%emt 0:00:20]} Bc6 {[%emt 0:
01:39]} 15. b4 {[%emt 0:04:07]} Rad8 {[%emt 0:04:09]} 16. g3 {[%emt 0:03:15]}
Bb7 {[%emt 0:01:45]} 17. Bg2 {[%emt 0:00:41]} Bxg2 {[%emt 0:00:00]} 18. Kxg2 {
[%emt 0:00:01]} f4 {[%emt 0:00:08]} 19. f3 {[%emt 0:01:03]} d6 {[%emt 0:00:41]}
20. exd6 {[%emt 0:00:20]} Bxd6 {[%emt 0:00:00]} 21. Ne4 {[%emt 0:00:23]} fxg3 {
[%emt 0:00:09]} 22. hxg3 {[%emt 0:00:02]} Bxg3 {[%emt 0:02:49]} 23. Nxg3 {
[%emt 0:00:00]} Nh4+ {[%emt 0:00:01]} 24. Kh3 {[%emt 0:00:09]} Nxf3 {[%emt 0:
00:02]} 25. Rf1 {[%emt 0:00:30]} Qc6 {[%emt 0:00:41]} 26. Qe2 {[%emt 0:00:16]}
Qd5 {[%emt 0:02:26]} 27. Rxf3 {[%emt 0:00:17]} Rxf3 {[%emt 0:00:00]} 28. Re1 {
[%emt 0:00:01]} Re8 {[%emt 0:00:39]} 29. Qe4 {[%emt 0:00:18]} Qxe4 {[%emt 0:00:
12]} 30. Rxe4 {[%emt 0:00:01]} Rd3 {[%emt 0:00:58]} 31. Kg2 {[%emt 0:00:14]}
Rd2+ {[%emt 0:00:05]} 32. Kh3 {[%emt 0:00:03]} Rd3 {[%emt 0:00:11]} 33. Kg2 {
[%emt 0:00:06]} g6 {[%emt 0:00:08]} 34. Re5 {[%emt 0:00:06]} Rd2+ {[%emt 0:00:
06]} 35. Kh3 {[%emt 0:00:23]} Rd3 {[%emt 0:00:19]} 36. a5 {[%emt 0:00:14]} Rf8
{[%emt 0:00:14]} 37. axb6 {[%emt 0:00:07]} axb6 {[%emt 0:00:01]} 38. Kg2 {
[%emt 0:00:03]} Rd2+ {[%emt 0:00:01]} 39. Ne2 {[%emt 0:00:12]} Rf5 {[%emt 0:00:
24]} 40. Rxe6 {[%emt 0:00:06]} b5 {[%emt 0:00:03]} 41. Kg3 {[%emt 0:00:19]}
Rd3+ {[%emt 0:00:00]} 42. Kg2 {[%emt 0:00:04]} Kf7 {[%emt 0:00:16]} 43. Re4 {
[%emt 0:00:00]} h5 {[%emt 0:00:10]} 44. Nf4 {[%emt 0:00:34]} Rd2+ {[%emt 0:00:
02]} 45. Kg3 {[%emt 0:00:02]} Rd1 {[%emt 0:00:16]} 46. Ne6 {[%emt 0:00:09]}
Rd3+ {[%emt 0:00:14]} 47. Kh4 {[%emt 0:00:08]} Rd1 {[%emt 0:00:27]} 48. Ng5+ {
[%emt 0:00:15]} Kf8 {[%emt 0:00:01]} 49. Ne6+ {[%emt 0:00:11]} Kg8 {[%emt 0:00:
06]} 50. Kg3 {[%emt 0:00:13]} g5 {[%emt 0:00:15]} 51. Be3 {[%emt 0:00:12]} g4 {
[%emt 0:00:20]} 52. Nd4 {[%emt 0:00:07]} Rd5 {[%emt 0:00:04]} 53. Kh4 {[%emt 0:
00:08]} Re1 {[%emt 0:00:11]} 54. Kg3 {[%emt 0:00:10]} Kf7 {[%emt 0:00:04]} 55.
Kf2 {[%emt 0:00:10]} Ra1 {[%emt 0:00:09]} 56. Rf4+ {[%emt 0:00:06]} Kg6 {
[%emt 0:00:03]} 57. Rf8 {[%emt 0:00:07]} Re5 {[%emt 0:00:15]} 58. Bf4 {[%emt 0:
00:13]} Ra2+ {[%emt 0:00:05]} 59. Kg3 {[%emt 0:00:06]} Re1 {[%emt 0:00:03]} 60.
Rg8+ {[%emt 0:00:11]} Kf7 {[%emt 0:00:01]} 61. Rg5 {[%emt 0:00:13]} Rg1+ {
[%emt 0:00:03]} 0-1

[Event "RUS-ch Rapid 2021"]
[Site "Sochi"]
[Date "2021.10.13"]
[Round "11.4"]
[White "Demidov, Mikhail"]
[Black "Gochelashvili, David"]
[Result "1-0"]
[ECO "B06"]
[WhiteElo "2551"]
[BlackElo "2400"]
[Annotator "ChessBase"]
[PlyCount "71"]
[EventDate "2021.10.12"]
[EventType "swiss"]
[EventCountry "RUS"]
[SourceTitle "playchess.com"]
[Source "ChessBase"]
[SourceQuality "1"]
[TimeControl "900+10"]

1. g3 {[%emt 0:00:06]} g6 {[%emt 0:00:11]} 2. Bg2 {[%emt 0:00:00]} Bg7 {
[%emt 0:00:00]} 3. d4 {[%emt 0:00:08]} d6 {[%emt 0:00:18]} 4. Nc3 {[%emt 0:00:
02]} c6 {[%emt 0:00:55]} 5. e4 {[%emt 0:00:07]} e5 {[%emt 0:00:21]} 6. Nge2 {
[%emt 0:00:13]} Be6 {[%emt 0:00:48]} 7. Be3 {[%emt 0:00:51]} Ne7 {[%emt 0:00:
59]} 8. Qd2 {[%emt 0:00:22]} b5 {[%emt 0:00:50]} 9. a3 {[%emt 0:00:58]} Qc8 {
[%emt 0:00:15]} 10. f4 {[%emt 0:01:25]} O-O {[%emt 0:01:01]} 11. O-O {[%emt 0:
00:00]} a6 {[%emt 0:02:23]} 12. Rad1 {[%emt 0:01:20]} Re8 {[%emt 0:00:03]} 13.
fxe5 {[%emt 0:01:06]} dxe5 {[%emt 0:00:00]} 14. d5 {[%emt 0:00:00]} cxd5 {
[%emt 0:04:06]} 15. exd5 {[%emt 0:00:40]} Bh3 {[%emt 0:00:58]} 16. Bxh3 {
[%emt 0:00:56]} Qxh3 {[%emt 0:00:00]} 17. Ne4 {[%emt 0:00:15]} Nf5 {[%emt 0:00:
29]} 18. Nf2 {[%emt 0:00:17]} Qh5 {[%emt 0:00:00]} 19. g4 {[%emt 0:00:06]} Qh4
{[%emt 0:00:00]} 20. Bg5 {[%emt 0:01:05]} Bh6 {[%emt 0:01:20]} 21. Bxh4 {
[%emt 0:00:02]} Bxd2 {[%emt 0:00:00]} 22. gxf5 {[%emt 0:00:00]} Be3 {[%emt 0:
00:04]} 23. Rd3 {[%emt 0:00:18]} Bb6 {[%emt 0:00:05]} 24. fxg6 {[%emt 0:00:11]}
hxg6 {[%emt 0:00:01]} 25. Kg2 {[%emt 0:00:25]} e4 {[%emt 0:00:15]} 26. Rg3 {
[%emt 0:01:20]} Bc7 {[%emt 0:00:58]} 27. Rg4 {[%emt 0:00:14]} Nd7 {[%emt 0:00:
23]} 28. Rxe4 {[%emt 0:00:37]} Ne5 {[%emt 0:00:45]} 29. Bf6 {[%emt 0:00:40]}
Nd7 {[%emt 0:00:00]} 30. Bc3 {[%emt 0:00:10]} f5 {[%emt 0:00:23]} 31. Re6 {
[%emt 0:00:40]} Kf7 {[%emt 0:00:04]} 32. Nd4 {[%emt 0:00:24]} Nb6 {[%emt 0:00:
01]} 33. Nh3 {[%emt 0:00:15]} Nxd5 {[%emt 0:00:04]} 34. Ng5+ {[%emt 0:00:08]}
Kg7 {[%emt 0:00:00]} 35. Nxf5+ {[%emt 0:00:09]} Kf8 {[%emt 0:00:05]} 36. Nd6+ {
[%emt 0:00:11]} 1-0

[Event "RUS-ch Rapid 2021"]
[Site "Sochi"]
[Date "2021.10.13"]
[Round "11.5"]
[White "Moiseenko, Vadim"]
[Black "Petrov, Nikita"]
[Result "1/2-1/2"]
[ECO "A12"]
[WhiteElo "2542"]
[BlackElo "2539"]
[Annotator "ChessBase"]
[PlyCount "85"]
[EventDate "2021.10.12"]
[EventType "swiss"]
[EventCountry "RUS"]
[SourceTitle "playchess.com"]
[Source "ChessBase"]
[SourceQuality "1"]
[TimeControl "900+10"]

1. b3 {[%emt 0:00:00]} d5 {[%emt 0:00:00]} 2. Bb2 {[%emt 0:00:00]} Bg4 {
[%emt 0:00:06]} 3. d4 {[%emt 0:00:27]} Nf6 {[%emt 0:00:07]} 4. Nd2 {[%emt 0:00:
04]} e6 {[%emt 0:00:22]} 5. Ngf3 {[%emt 0:01:15]} Nbd7 {[%emt 0:00:08]} 6. e3 {
[%emt 0:00:00]} Bd6 {[%emt 0:00:22]} 7. Be2 {[%emt 0:00:33]} O-O {[%emt 0:00:
30]} 8. O-O {[%emt 0:00:00]} Qe7 {[%emt 0:00:24]} 9. c4 {[%emt 0:00:17]} c6 {
[%emt 0:00:17]} 10. Qc2 {[%emt 0:00:39]} a5 {[%emt 0:02:42]} 11. Bd3 {[%emt 0:
00:47]} Bh5 {[%emt 0:01:09]} 12. Ne5 {[%emt 0:00:25]} Bg6 {[%emt 0:00:00]} 13.
Nxg6 {[%emt 0:00:26]} hxg6 {[%emt 0:00:00]} 14. c5 {[%emt 0:01:01]} Bc7 {
[%emt 0:00:22]} 15. f4 {[%emt 0:00:00]} g5 {[%emt 0:02:24]} 16. Rae1 {[%emt 0:
01:27]} g4 {[%emt 0:02:03]} 17. Be2 {[%emt 0:00:00]} b6 {[%emt 0:00:21]} 18.
cxb6 {[%emt 0:00:09]} Bxb6 {[%emt 0:00:00]} 19. Qd1 {[%emt 0:00:03]} a4 {
[%emt 0:00:23]} 20. Bxg4 {[%emt 0:01:59]} axb3 {[%emt 0:00:00]} 21. axb3 {
[%emt 0:00:00]} Nxg4 {[%emt 0:01:14]} 22. Qxg4 {[%emt 0:00:00]} Ba5 {[%emt 0:
00:01]} 23. Qe2 {[%emt 0:00:14]} Nf6 {[%emt 0:00:04]} 24. Ra1 {[%emt 0:00:30]}
Bxd2 {[%emt 0:00:13]} 25. Qxd2 {[%emt 0:00:14]} Ne4 {[%emt 0:00:06]} 26. Qc2 {
[%emt 0:00:07]} Qb4 {[%emt 0:00:28]} 27. Rxa8 {[%emt 0:02:41]} Rxa8 {[%emt 0:
00:00]} 28. Qxc6 {[%emt 0:00:04]} Rb8 {[%emt 0:01:34]} 29. f5 {[%emt 0:00:39]}
Qxb3 {[%emt 0:00:24]} 30. Bc1 {[%emt 0:00:00]} exf5 {[%emt 0:01:32]} 31. Rxf5 {
[%emt 0:00:00]} Nf6 {[%emt 0:00:18]} 32. h3 {[%emt 0:01:09]} Qd3 {[%emt 0:00:
09]} 33. Rf1 {[%emt 0:00:28]} Rb1 {[%emt 0:00:33]} 34. Qc8+ {[%emt 0:00:47]}
Kh7 {[%emt 0:00:00]} 35. Qc7 {[%emt 0:00:09]} Ra1 {[%emt 0:01:17]} 36. Re1 {
[%emt 0:01:52]} Ra2 {[%emt 0:00:23]} 37. Kh2 {[%emt 0:00:48]} Qe4 {[%emt 0:00:
29]} 38. Qg3 {[%emt 0:00:40]} Qf5 {[%emt 0:00:14]} 39. Kg1 {[%emt 0:00:42]} Ne4
{[%emt 0:00:20]} 40. Qh4+ {[%emt 0:00:12]} Kg8 {[%emt 0:00:02]} 41. Qd8+ {
[%emt 0:00:10]} Kh7 {[%emt 0:00:02]} 42. Qh4+ {[%emt 0:00:07]} Kg8 {[%emt 0:00:
00]} 43. Qd8+ {[%emt 0:00:25]} 1/2-1/2

[Event "RUS-ch Rapid 2021"]
[Site "Sochi"]
[Date "2021.10.13"]
[Round "11.6"]
[White "Antipov, Mikhail Al."]
[Black "Triapishko, Alexandr"]
[Result "1-0"]
[ECO "B13"]
[WhiteElo "2619"]
[BlackElo "2506"]
[Annotator "RC"]
[PlyCount "69"]
[EventDate "2021.10.12"]
[EventType "swiss"]
[EventCountry "RUS"]
[SourceTitle "playchess.com"]
[Source "ChessBase"]
[SourceQuality "1"]
[TimeControl "900+10"]

1. e4 {[%emt 0:00:05]} c6 {[%emt 0:00:46]} 2. d4 {[%emt 0:00:02]} d5 {[%emt 0:
00:10]} 3. exd5 {[%emt 0:00:05]} cxd5 {[%emt 0:00:00]} 4. Bd3 {[%emt 0:00:00]}
Nf6 {[%emt 0:00:27]} 5. h3 {[%emt 0:00:00]} Nc6 {[%emt 0:00:08]} 6. c3 {
[%emt 0:00:00]} g6 {[%emt 0:00:33]} 7. Nf3 {[%emt 0:00:00]} Bf5 {[%emt 0:00:12]
} 8. Be2 {[%emt 0:00:00]} e6 {[%emt 0:00:35]} 9. O-O {[%emt 0:00:15]} Qc7 {
[%emt 0:00:23]} 10. Re1 {[%emt 0:00:33]} a6 {[%emt 0:02:17]} 11. c4 {[%emt 0:
01:04]} Bg7 {[%emt 0:03:35]} 12. Nc3 {[%emt 0:07:48]} O-O {[%emt 0:00:29]} 13.
Be3 {[%emt 0:00:00]} dxc4 {[%emt 0:00:57]} 14. Bxc4 {[%emt 0:00:11]} Rfd8 {
[%emt 0:04:03]} 15. Bb3 {[%emt 0:01:28]} Na5 {[%emt 0:01:13]} 16. Rc1 {[%emt 0:
00:01]} Qe7 {[%emt 0:01:23]} 17. Ne5 {[%emt 0:00:38]} Ne4 {[%emt 0:00:39]} 18.
Qf3 {[%emt 0:01:03]} Nxb3 {[%emt 0:00:01]} 19. axb3 {[%emt 0:00:05]} Nxc3 {
[%emt 0:00:18]} 20. bxc3 {[%emt 0:00:17]} f6 {[%emt 0:00:08]} 21. Nc4 {[%emt 0:
00:05]} e5 {[%emt 0:00:12]} 22. dxe5 {[%emt 0:00:43]} fxe5 {[%emt 0:00:00]} 23.
Nb6 {[%emt 0:00:08]} Rab8 {[%emt 0:00:07]} 24. c4 {[%emt 0:00:07]} e4 {[%emt 0:
00:19]} 25. Qg3 {[%emt 0:00:08]} Be5 {[%emt 0:00:08]} 26. Bf4 {[%emt 0:00:00]}
Bxf4 {[%emt 0:00:11]} 27. Qxf4 {[%emt 0:00:04]} Qd6 {[%emt 0:00:04]} 28. Qe3 {
[%emt 0:00:03]} h5 {[%emt 0:00:20]} 29. Nd5 {[%emt 0:00:23]} b5 {[%emt 0:00:00]
} 30. Qg5 {[%emt 0:00:02]} bxc4 {[%emt 0:00:22]} 31. Rcd1 {[%emt 0:00:23]} Qe6
{[%emt 0:00:07]} 32. bxc4 {[%emt 0:00:40]} Kf7 {[%emt 0:00:12]} 33. f3 {
[%emt 0:00:24]} Rb3 {[%emt 0:00:08]} 34. Qxd8 {[%emt 0:00:17]} Bxh3 {[%emt 0:
00:07]} 35. Rxe4 {[%emt 0:00:09]} 1-0

[Event "RUS-ch Rapid 2021"]
[Site "Sochi"]
[Date "2021.10.13"]
[Round "11.8"]
[White "Belozerov, Andrei"]
[Black "Grachev, Boris"]
[Result "1-0"]
[ECO "B45"]
[WhiteElo "2476"]
[BlackElo "2615"]
[Annotator "RC"]
[PlyCount "83"]
[EventDate "2021.10.12"]
[EventType "swiss"]
[EventCountry "RUS"]
[SourceTitle "playchess.com"]
[Source "ChessBase"]
[SourceQuality "1"]
[TimeControl "900+10"]

1. e4 {[%emt 0:00:05]} c5 {[%emt 0:00:09]} 2. Nf3 {[%emt 0:00:00]} e6 {[%emt 0:
00:00]} 3. d4 {[%emt 0:00:11]} cxd4 {[%emt 0:00:00]} 4. Nxd4 {[%emt 0:00:00]}
Nf6 {[%emt 0:00:00]} 5. Nc3 {[%emt 0:00:05]} Nc6 {[%emt 0:00:07]} 6. Ndb5 {
[%emt 0:00:07]} Bc5 {[%emt 0:00:00]} 7. Bf4 {[%emt 0:00:25]} O-O {[%emt 0:00:
00]} 8. Bc7 {[%emt 0:00:52]} Qe7 {[%emt 0:00:00]} 9. Bd6 {[%emt 0:00:14]} Bxd6
{[%emt 0:00:00]} 10. Qxd6 {[%emt 0:00:00]} Qd8 {[%emt 0:00:00]} 11. O-O-O {
[%emt 0:02:37]} a6 {[%emt 0:00:11]} 12. Nd4 {[%emt 0:00:30]} Na5 {[%emt 0:00:
01]} 13. g4 {[%emt 0:02:41]} b5 {[%emt 0:00:06]} 14. g5 {[%emt 0:00:25]} Ne8 {
[%emt 0:00:08]} 15. Qg3 {[%emt 0:00:53]} Bb7 {[%emt 0:01:28]} 16. Bd3 {[%emt 0:
01:04]} Qb6 {[%emt 0:00:22]} 17. Nce2 {[%emt 0:00:27]} Nd6 {[%emt 0:01:33]} 18.
Qh4 {[%emt 0:01:31]} e5 {[%emt 0:01:47]} 19. Rhg1 {[%emt 0:00:11]} Rfe8 {
[%emt 0:04:48]} 20. Nf3 {[%emt 0:01:18]} g6 {[%emt 0:00:43]} 21. Rg4 {[%emt 0:
01:11]} Nf5 {[%emt 0:01:29]} 22. exf5 {[%emt 0:00:39]} Bxf3 {[%emt 0:00:00]}
23. Qh6 {[%emt 0:00:22]} Re6 {[%emt 0:02:15]} 24. fxe6 {[%emt 0:00:38]} Qxe6 {
[%emt 0:00:49]} 25. Rh4 {[%emt 0:00:08]} d6 {[%emt 0:00:16]} 26. Re1 {[%emt 0:
00:14]} Qxa2 {[%emt 0:02:05]} 27. Qxh7+ {[%emt 0:00:15]} Kf8 {[%emt 0:00:00]}
28. Qh8+ {[%emt 0:00:00]} Ke7 {[%emt 0:00:02]} 29. Qf6+ {[%emt 0:00:09]} Kd7 {
[%emt 0:00:00]} 30. Qxf3 {[%emt 0:00:19]} Rc8 {[%emt 0:00:01]} 31. Nc3 {
[%emt 0:00:35]} Qa1+ {[%emt 0:00:24]} 32. Kd2 {[%emt 0:00:05]} Qxb2 {[%emt 0:
00:17]} 33. Qxf7+ {[%emt 0:00:03]} Kc6 {[%emt 0:00:03]} 34. Be4+ {[%emt 0:00:
19]} Kc5 {[%emt 0:00:41]} 35. Qa7+ {[%emt 0:00:14]} Kb4 {[%emt 0:00:05]} 36.
Bd5+ {[%emt 0:00:31]} Rc4 {[%emt 0:00:12]} 37. Rb1 {[%emt 0:01:01]} Nb3+ {
[%emt 0:00:17]} 38. Kd1 {[%emt 0:00:01]} Qxb1+ {[%emt 0:00:53]} 39. Nxb1 {
[%emt 0:00:03]} Rxh4 {[%emt 0:00:06]} 40. c3+ {[%emt 0:00:19]} Ka4 {[%emt 0:00:
03]} 41. Qxa6+ {[%emt 0:00:11]} Na5 {[%emt 0:00:01]} 42. Kc2 {[%emt 0:00:12]}
1-0